Cogmind - Beta 17.1 @@@ ROGUE MODE // 2026.09.16 @ 17:52:52 Player: Delget Result: Destroyed by D-53 Grenadier with Mini Grenade Launcher Performance ------------- Evolutions (0) 0 Regions Visited (2) 400 Robots Destroyed (10) 50 Value Destroyed (304) 304 Prototype IDs (2) 40 Alien Tech Used (0) 0 Bonus (0) 0 TOTAL SCORE: 794 Bonus ------- None Cogmind --------- Core Integrity 0/250 Matter 263/300 Energy 100/100 System Corruption 3% Temperature Cool (0) Movement Treading (240) Ox1 Location -10/Mines Parts ------- > --- POWER (1) -------- (None) > --- PROPULSION (2) --- Light Treads > --- UTILITY (2) ------ Large Storage Unit > --- WEAPON (2) ------- Small Laser > --- INVENTORY (15) --- Small Storage Unit Large Storage Unit Peak State ------------ > --- POWER ------------ Light Ion Engine > --- PROPULSION ------- Light Treads Light Treads > --- UTILITY ---------- Small Storage Unit Signal Interpreter > --- WEAPON ----------- EM Pulse Gun EM Pulse Gun > --- INVENTORY -------- Light Ion Engine Small Laser [Rating: 7] Favorites ----------- Power Light Ion Engine Engine Light Ion Engine Propulsion Light Treads Treads Light Treads Utility Signal Interpreter Storage Small Storage Unit Processor Signal Interpreter Weapon EM Pulse Gun Energy Gun EM Pulse Gun Build | -11 -10 -10 ------- Run | Yrd Mat Min Slots Evolved . | . . . Power . | . . . Propulsion . | . . . Utility . | . . . Weapon . | . . . Parts Attached 17 | 3 10 4 Power 4 | 1 2 1 Engine 4 | 1 2 1 Core . | . . . Reactor . | . . . Propulsion 4 | 2 2 . Treads 4 | 2 2 . Leg . | . . . Wheel . | . . . Hover . | . . . Flight . | . . . Utility 4 | . 4 . Device . | . . . Storage 3 | . 3 . Processor 1 | . 1 . Hackware . | . . . Protection . | . . . Artifact . | . . . Weapon 5 | . 2 3 Energy Gun 5 | . 2 3 Energy Cannon . | . . . Ballistic Gun . | . . . Ballistic Cannon . | . . . Launcher . | . . . Special Weapon . | . . . Impact Weapon . | . . . Slashing Weapon . | . . . Piercing Weapon . | . . . Special Melee Weapon . | . . . Unidentified Prototypes . | . . . Parts Lost 9 | . 1 8 Power 3 | . 1 2 Propulsion 1 | . . 1 Utility 1 | . . 1 Weapon 4 | . . 4 Highest Loss Streak 8 | . 1 8 To Critical Strikes . | . . . Average Backups 6 | 4 6 6 Power 2 | . 2 . Propulsion . | . . 1 Utility . | . . 2 Weapon 2 | 2 2 2 Tool/Special . | . . . Unused Backups 5 | . 4 1 Power 3 | . 3 . Propulsion . | . . . Utility 1 | . . 1 Weapon 1 | . 1 . Tool/Special . | . . . Average Slot Usage (%) 88 | . 88 89 Engine 11 | . 11 13 Treads 27 | . 27 26 Storage 12 | . 12 14 Processor 13 | . 12 13 Energy Gun 22 | . 22 20 Peak Build Rating 7 | 3 7 7 Average Rating 6 | 2 6 6 On Entrance 2 | . 3 5 Avg Prop Armor Cover (%) . | . . . Naked Turns . | . . . Heaviest Build 27 | 3 23 27 Greatest Support 40 | 40 40 40 Greatest Overweight (x) 8 | . . 8 Average Overweight (x) . | . . . Largest Inventory Capacity 15 | 5 15 15 Average Capacity 9 | 5 7 15 Most Carried 8 | 5 8 8 Average Carried 6 | 4 6 6 Final Capacity 15 | 5 15 15 Final Carried 8 | 5 8 2 Class Distribution -------------------- 100% | Mutant Dominant Class ---------------- Mutant | -10/Materials Mutant | -10/Mines Resources | -11 -10 -10 ----------- Run | Yrd Mat Min Matter Collected 325 | 229 76 20 Remotely . | . . . Salvage Created 529 | . 469 60 Parts 22 | . 22 . Haulers Intercepted . | . . . Recyclers Shooed . | . . . Parts Field Recycled . | . . . Retrieved Matter . | . . . Parts Self-Destructed . | . . . Prevented . | . . . Parts Restored . | . . . Kills | -11 -10 -10 ------- Run | Yrd Mat Min Combat Hostiles Destroyed 11 | . 8 3 Guns 9 | . 6 3 AOE 2 | . 2 . Classes Destroyed 4 | . 3 1 Recycler 1 | . 1 . Mechanic 1 | . 1 . Grunt 8 | . 8 . Assembled 3 | . . 3 Best Kill Streak 6 | . 6 3 Combat Bots Only 4 | . 4 3 Max Kills in Single Turn 3 | . 3 1 Gunslinging . | . . . Exploded 1 | . 1 . Melee . | . . . Uniques/NPCs Destroyed . | . . . Combat | -11 -10 -10 -------- Run | Yrd Mat Min Hostile Shots Fired 86 | . 27 59 Missed 21 | . 9 12 Hits 65 | . 18 47 Melee 15 | . . 15 Projectile 50 | . 18 32 AOE 1 | . . 1 Critical Strikes 2 | . . 2 Damage Taken 1144 | . 273 871 Core 268 | . 38 230 Absorbed by Shields . | . . . Regen/Repaired (Parts) 64 | . 64 . Core Remaining (%) 100 | 100 . . Volleys Fired 36 | . 21 15 Largest 2 | . 2 2 Hottest 80 | . 80 80 Shots Fired 68 | . 42 26 Gun 68 | . 42 26 Cannon . | . . . Launcher . | . . . Special . | . . . Kinetic . | . . . Thermal 15 | . . 15 Explosive . | . . . Electromagnetic 53 | . 42 11 Robot Hit Streak 9 | . 6 9 Robot Miss Streak 4 | . 2 4 Penetration Max . | . . . Secondary Targets 1 | . . 1 Max Gunslinging Chain 1 | . . 1 Shots Hit Robots 43 | . 26 17 Core Hits 23 | . 17 6 Critical Kills . | . . . Critical Parts Destroyed . | . . . Critical Strikes . | . . . Melee Attacks . | . . . Impact . | . . . Slashing . | . . . Piercing . | . . . Sneak Attacks . | . . . Combat Hostiles . | . . . Follow-up Attacks . | . . . Damage Inflicted 783 | . 590 193 Guns 560 | . 367 193 Cannons . | . . . Explosions 223 | . 223 . Melee . | . . . Ramming . | . . . Kinetic . | . . . Thermal 336 | . 223 113 Explosive . | . . . Electromagnetic 447 | . 367 80 Impact . | . . . Slashing . | . . . Piercing . | . . . Highest Corruption 3 | . . 3 Average Corruption 3 | . . 3 Corruption Purged . | . . . Corruption Blocked . | . . . Overload Shots . | . . . Overflow Damage 11 | . 11 . Projectiles . | . . . Explosions 11 | . 11 . Melee . | . . . Knockbacks . | . . . Impact . | . . . Kinetic . | . . . Secondary . | . . . Self-Inflicted Damage 63 | . 63 . Shots 3 | . 3 . Rammed 1 | . . 1 Targets Rammed 1 | . . 1 Kicked . | . . . Crushed . | . . . Highest Temperature 142 | . 142 100 Average Temperature 51 | . 53 48 Received Heat Transfer 140 | . 120 20 Siege Activations . | . . . Martial Activations . | . . . Shielding Activations . | . . . Robots Disrupted . | . . . Combat Hostiles . | . . . Robots Corrupted . | . . . Combat Hostiles . | . . . Parts Fried . | . . . Impact Corruptions . | . . . Robots Melted . | . . . Combat Hostiles . | . . . Parts Melted . | . . . Heat Transferred 550 | . 300 250 Parts Sabotaged . | . . . Parts Stolen . | . . . Parts Stripped . | . . . Power Chain Reactions 3 | . 3 . Alert | -11 -10 -10 ------- Run | Yrd Mat Min Maximum Alert Level . | . . . Low Security (%) 100 | 100 100 100 Level 1 . | . . . Level 2 . | . . . Level 3 . | . . . Level 4 . | . . . Level 5 . | . . . High Security . | . . . Max Security . | . . . Peak Influence 92 | . 92 1 Initial 1 | . . 1 Average 11 | . 17 . Influence Increases 241 | . 241 . Destroy 0b10 Robot/C 160 | . 160 . Destroy 0b10 Robot/NC 10 | . 10 . Destroy Leader 50 | . 50 . Successful Hack 13 | . 13 . Destroy Structure 8 | . 8 . Influence Decreases 241 | . 235 6 Entered New Map 5 | . . 5 Time Decay 226 | . 225 1 Lost Part 10 | . 10 . Squads Dispatched 4 | . 4 . Investigation 3 | . 3 . Extermination . | . . . Reinforcement 1 | . 1 . Assault . | . . . Garrison . | . . . Intercept . | . . . Searches Triggered . | . . . Construction Impeded . | . . . Haulers Reinforced . | . . . Active Scanning Responses . | . . . Cargo Convoy Interrupts . | . . . Stealth | -11 -10 -10 --------- Run | Yrd Mat Min Distress Signals 1 | . 1 . Communications Jammed . | . . . Distress Signals . | . . . Times Spotted 40 | . 13 27 Peak Tracking Total 20 | . 4 20 Tactical Retreats 3 | . . 3 Traps | -11 -10 -10 ------- Run | Yrd Mat Min Traps Triggered 2 | . 2 . Indirectly . | . . . Trap Hack Attempts . | . . . Triggered . | . . . Disarmed 2 | . 2 . Reprogrammed . | . . . Reused . | . . . Traps Extracted . | . . . Installed . | . . . Triggered . | . . . Machines | -11 -10 -10 ---------- Run | Yrd Mat Min Machines Disabled . | . . . Max in Single Turn . | . . . Machines Repaired . | . . . Machines Dismantled . | . . . Machines Sabotaged . | . . . Overloaded Fab Kills . | . . . Hacking | -11 -10 -10 --------- Run | Yrd Mat Min Machines Accessed 10 | . 10 . Terminals 7 | . 7 . Fabricators . | . . . Repair Stations 1 | . 1 . Recycling Units 2 | . 2 . Scanalyzers . | . . . Garrison Access . | . . . Total Hacks 32 | . 32 . Successful 22 | . 22 . Failed 10 | . 10 . Catastrophic . | . . . Database Lockouts . | . . . Manual . | . . . Terminals 20 | . 20 . Fabricators . | . . . Repair Stations 4 | . 4 . Recycling Units 8 | . 8 . Scanalyzers . | . . . Garrison Access . | . . . Terminal Hacks 12 | . 12 . Record 6 | . 6 . Prototype ID Bank 1 | . 1 . Alert Level 1 | . 1 . Locate Traps 2 | . 2 . Disarm Traps 1 | . 1 . Dispatch Records 1 | . 1 . Fabricator Hacks . | . . . Repair Station Hacks 3 | . 3 . Scan Component 2 | . 2 . Repair 1 | . 1 . Recycling Unit Hacks 7 | . 7 . Recycle Component 4 | . 4 . Process 2 | . 2 . Report Inventory 1 | . 1 . Scanalyzer . | . . . Garrison Access Hacks . | . . . Unauthorized Hacks . | . . . Terminals . | . . . Fabricators . | . . . Repair Stations . | . . . Recycling Units . | . . . Scanalyzers . | . . . Garrison Access . | . . . Data Cores Recovered . | . . . Used . | . . . Hacking Detections 8 | . 8 . Full Trace Events 4 | . 4 . Feedback Events . | . . . Feedback Blocked . | . . . Robot Schematics Acquired . | . . . Robots Built . | . . . Authchips . | . . . Time . | . . . Total Robot Build Rating . | . . . Part Schematics Acquired . | . . . Parts Built . | . . . Authchips . | . . . Time . | . . . Total Part Build Rating . | . . . Part Studies Acquired . | . . . Parts Repaired 1 | . 1 . Time 26 | . 26 . Parts Recycled 4 | . 4 . Recycled Matter 286 | . 286 . Retrieved Matter . | . . . Retrieved Components . | . . . Parts Scanalyzed . | . . . Part Schematics Acquired . | . . . Parts Damaged . | . . . Bothacking | -11 -10 -10 ------------ Run | Yrd Mat Min Used RIF Installer . | . . . Robots Hacked . | . . . Non-combat . | . . . Combat . | . . . Robot Hacks Applied . | . . . Relay Couplers Released . | . . . Fabnet Peak Effective % . | . . . Robots Rewired . | . . . Allies Hacked . | . . . Hacks Repelled . | . . . Allies | -11 -10 -10 -------- Run | Yrd Mat Min Total Allies . | . . . Largest Group . | . . . Highest-Rated Group . | . . . Highest-Rated Ally . | . . . Total Orders . | . . . Ally Attacks . | . . . Total Damage . | . . . Kills . | . . . Allies Corrupted . | . . . Allies Melted . | . . . Intel | -11 -10 -10 ------- Run | Yrd Mat Min Active Infowar (turns) . | . . . Robot Analysis Total . | . . . Derelict Logs Recovered 2 | . . 2 Drone Launches . | . . . Drone Recoveries . | . . . Exploration | -11 -10 -10 ------------- Run | Yrd Mat Min Turns Passed 1599 | 64 1049 486 Spaces Moved 896 | 47 587 262 Core 23 | 18 . 5 Treads 873 | 29 587 257 Legs . | . . . Wheels . | . . . Hover . | . . . Flight . | . . . Fastest Speed 50 | 50 160 160 Average Speed 159 | 117 160 165 Slowest Speed 450 | 160 160 450 Overloaded Moves . | . . . Propulsion Burnouts . | . . . Robots Hopped . | . . . Potential Cave-ins . | . . . Cave-ins Triggered . | . . . Exploration Rate (%) 42 | 3 72 51 Regions Visited 2 Branch Regions 1 Pre-discovered Areas 1 | . . 1 Known Exits Taken 1 | . 1 . Unknown Exits Taken 1 | 1 . . Scrap Searched . | . . . Spaces Dug . | . . . Terrain Destroyed 7 | . 7 . Melee . | . . . Projectile . | . . . AOE 7 | . 7 . Terrain Rammed . | . . . Walls Destroyed . | . . . Machines Disabled . | . . . Actions | -11 -10 -10 --------- Run | Yrd Mat Min Total 997 | 54 656 287 Wait 18 | . 17 1 Move 894 | 46 586 262 Hop . | . . . Pick Up 22 | 5 16 1 Fast Attach 4 | 3 1 . Attach 13 | . 6 7 Detach . | . . . Swap 4 | . 4 . Drop 5 | . 5 . Fire 36 | . 21 15 Melee . | . . . Ram . | . . . Kick . | . . . Crush 1 | . . 1 Escape Stasis . | . . . Rewire . | . . . Trap . | . . . Miscellaneous . | . . . Route ------- -11/Scrapyard -10/Materials (discovered 3 exits: *Mat x2 / *Min) -10/Mines History --------- Turn | Location | Event 13 | -11/Scrapyard | Discovered new exit (range 16) 65 | -11/Scrapyard | Entered Materials 66 | -10/Materials | Met a group of wandering Federalists 209 | -10/Materials | Discovered new exit (range 13) 313 | -10/Materials | Build established: Mutant 796 | -10/Materials | Discovered new exit (range 5) 802 | -10/Materials | Repaired Lgt. Treads? 817 | -10/Materials | Identified exit to Materials 837 | -10/Materials | Discovered new exit (range 14) 866 | -10/Materials | Identified exit to Mines 1114 | -10/Materials | Entered Mines 1296 | -10/Mines | Learned Materials security intel 1459 | -10/Mines | Learned location of Zion (-7) 1515 | -10/Mines | Assembled infested the area 1567 | -10/Mines | Core integrity fell below 50% 1597 | -10/Mines | Core integrity fell below 20% 1600 | -10/Mines | Destroyed by D-53 Grenadier with Mini Grenade Launcher Last Messages --------------- [Achievement: For Emergencies Only] The achievement interface (ESC then open Records) offers an effective way to explore all of your earned achievements as well as seek out new goals for future runs. Notice for Steam players: Cogmind player global achievement rates displayed by Steam are all underreported, in many cases by a huge margin, due to how they are calculated by Valve. 01598_ C-45 Heavy ARC bursts open, deploying its payload. 01598_ D-53 Grenadier unfolds itself. 01598_ as-50009 destroyed. 01598_ as-62782 destroyed. 01598_ as-87977 destroyed. 01598_ as-69412 destroyed. 01598_ as-75962 destroyed. 01598_ Signal Interpreter destroyed. 01598_ System corrupted by crushing effect (+3). 01598_ as-41152 destroyed. Map ----- +----------------------------------------------------+ | ???????????????????### ?????## #### | | ??????????????????## ???## ##?## | | ????????????????### #?## #### | | ???????????????## ## ## | | ???????????????# ### | | ???????????????# ##?## ## | | ????????????????# ##???# ##### | | ????????????????## ### ###????## ##??## | | ?????????????????## ????## ##???????######## | | ?????????????????????????####???######### | | ???????????????????????????????## | | ???????????????????????????????# | | ???????????????????????????????# | | ???????????????????????????????# """ | | ???????????????????????????????## """ | | ????????????????????????????????# ## """ | | ????????????????????????????????# #?# | | ????????????????????????????###### #??# #### | | ????????????????????????????# #####???# #??? | | ???????????????????????????## #???????## ##?? | | ??????????????????????????## #????????## #?? | | ??????????????????????????# ##?####???# #? | | ?????????????????????????## ### ##??# # | | ??????????????????????#### #??## # | | ????????????????????### d%## #???## ## | | ???????????????????## @ #### ##########? | | ???????????????????# d ##?## ###???? | | ???????????????????# a ##### ##??? | | ???????????????????## ### ## #### | | ????????????????????# ### ## == # | | ??????? ???????# #?## ### != ### # | | ??????? ## a % #??#####?# !##?# | | ??????? %!%a= #????????## #??### | | ??????? ## ##?????????####????? | | ????????????????? ## ####??????????????????? | | ????????????????# ?##### ##?????????????????????? | | ????????????????# ??????##???????????????????????? | | ????????????????#????????????????????????????????? | | ?????????????????????????????????????????????????? | | ?????????????????????????????????????????????????? | | ?????????????????????????????????????????????????? | | ?????????????????????????????????????????????????? | | ?????????????????????????????????????????????????? | | ?????????????????????????????????????????????????? | | ?????????????????????????????????????????????????? | | ?????????????????????????????????????????????????? | | ?????????????????????????????????????????????????? | | | | | | | +----------------------------------------------------+ Best States ------------- Heat Dissipation 25 Energy Generation 10 Energy Capacity 250 Matter Stores 300 Matter Capacity 300 Sight Range 16 Terrain Scan Density 10 Evasion (%) 50 Recoil Reduction 2 Item Schematics ----------------- None Robot Schematics ------------------ None Fabricated ------------ Nothing Repaired ---------- Lgt. Treads | 54% | -10/Materials Studied --------- None Alien Tech Used ----------------- None Achievements -------------- For Emergencies Only Challenges ------------ None Game ------ Seed ConcussiveMicrowarpPit Manual? 0 Play Time 00:29:49 Cumulative 22.8 hours Start 2026.09.16 @ 17:24:41 End 2026.09.16 @ 17:52:52 Sessions 1 Manual Loads 0 Difficulty Rogue Special Mode None Game No. 47 Rogue 47 Adventurer 0 Explorer 0 Win Type - Total 0 Types 0/0/0/0/0/0/0/0/0/0 Lore% 7 Gallery% 16 Achievement% 10 Wizard Run 0 Options --------- Layout 1 ASCII 0 Keyboard 0 Movement Mouse Keybinds 0 Fullscreen 1 Font 48/Smallcaps Map View 50x35 Zoom Use 0% Tactical HUD 1 Map Filters NONE Filters NONE Steam 1 RUN: 97d16201-60a3-4783-b487-6bc005ed293d